fUST/lending_fUST_20240207
["ID","MTS","AMOUNT","RATE_DAILY","PERIOD"]
[313378434,1707243032993,-500.0,0.00027397,2]
[313378435,1707243033002,-500.0,0.00027397,3]
[313378436,1707243033011,-500.0,0.00027397,3]
[313378437,1707243033019,-663.03,0.00027397,3]
[313378438,1707243033029,-647.47,0.00027397,3]
[313378439,1707243033038,-500.0,0.00027397,3]
[313378440,1707243033047,-155.0,0.00027397,2]
[313378441,1707243033056,-500.0,0.00027397,3]
[313378442,1707243033065,-500.0,0.00027397,3]
[313378443,1707243033074,-1000.0,0.00027397,2]
[313378444,1707243033084,-500.0,0.00027397,3]
[313378445,1707243033094,-500.0,0.00027397,3]
[313378446,1707243033103,-2102.37,0.00027397,3]
[313378447,1707243033112,-500.0,0.00027397,3]
[313378448,1707243033122,-2173.1,0.00027397,3]
[313378449,1707243033131,-5925.51,0.00027397,3]
[313378450,1707243033140,-500.0,0.00027397,3]
[313378451,1707243033148,-734.7,0.00027397,3]
[313378452,1707243033157,-500.0,0.00027397,3]
[313378453,1707243033166,-500.0,0.00027397,3]
[313378454,1707243033175,-500.0,0.00027397,3]
[313378455,1707243033185,-500.0,0.00027397,3]
[313378456,1707243033194,-500.0,0.00027397,3]
[313378457,1707243033204,-500.0,0.00027397,3]
[313378458,1707243033213,-500.0,0.00027397,3]
[313378459,1707243033222,-2568.81,0.00027397,3]
[313378460,1707243033231,-558.09,0.00027397,3]
[313378461,1707243033241,-616.11,0.00027397,3]
[313378462,1707243033251,-500.0,0.00027397,3]
[313378463,1707243033260,-500.0,0.00027397,3]
[313378464,1707243033269,-2104.07,0.00027397,3]
[313378465,1707243033279,-2363.99,0.00027397,3]
[313378466,1707243033288,-500.0,0.00027397,3]
[313378467,1707243033297,-500.0,0.00027397,3]
[313378468,1707243033306,-607.19,0.00027397,3]
[313378469,1707243033315,-1595.46189712,0.00027397,3]
[313378477,1707243038323,155.02480397,0.00016327,3]
[313378479,1707243038660,-2044.28504665,0.00018137,2]
[313378480,1707243038670,-1433.59401123,0.00018137,2]
[313378481,1707243038680,-1763.89810288,0.00027397,3]
[313378482,1707243038690,-875.97,0.00027397,3]
[313378483,1707243038699,-500.0,0.00027397,3]
[313378484,1707243038708,-1133.73,0.00027397,3]
[313378485,1707243038717,-622.42,0.00027397,3]
[313378486,1707243038727,-5452.29,0.00027397,3]
[313378487,1707243038737,-820.68,0.00027397,3]
[313378488,1707243038747,-500.0,0.00027397,2]
[313378489,1707243038757,-500.0,0.00027397,3]
[313378490,1707243038767,-205.81946783,0.00027397,2]
[313378491,1707243038778,-8673.81002401,0.0002742,4]
[313378492,1707243038789,-283.91059881,0.00027571,2]
[313378493,1707243038798,-500.0,0.00027667,2]
[313378494,1707243038808,-210.00898261,0.00027667,2]
[313378495,1707243038817,-640.78394497,0.00027667,2]
[313378496,1707243038826,-155.33653016,0.00027668,2]
[313378497,1707243038835,-322.14005268,0.00027668,2]
[313378498,1707243038844,-167.15177222,0.00027668,2]
[313378499,1707243038853,-11721.14233001,0.00027668,2]
[313378500,1707243038864,-2688.98158543,0.00027668,2]
[313378574,1707243041705,-3353.52801837,0.00027668,2]
[313378576,1707243042122,-3138.67613655,0.00027668,2]
[313378577,1707243042132,-500.0,0.00027671,3]
[313378578,1707243042141,-500.0,0.00027671,3]
[313378579,1707243042150,-101.82417996,0.00027671,3]
[313378580,1707243042161,-398.17582004,0.00027671,3]
[313378581,1707243042171,-500.0,0.00027671,3]
[313378582,1707243042180,-500.0,0.00027671,2]
[313378583,1707243042189,-500.0,0.00027671,3]
[313378584,1707243042198,-500.0,0.00027671,3]
[313378585,1707243042207,-281.54567996,0.00027671,3]
[313378617,1707243046575,-500.0,0.00027397,3]
[313378618,1707243046585,-5678.61,0.00027397,3]
[313378619,1707243046594,-156.02276705,0.00027667,2]
[313378620,1707243046606,-305.53024882,0.00027667,2]
[313378622,1707243046633,-151.7625489,0.00027667,2]
[313378623,1707243046642,-155.02480397,0.0002767,2]
[313378626,1707243046651,-17.09078807,0.0002767,2]
[313378628,1707243046663,-505.23556554,0.0002767,2]
[313378935,1707244238878,-4328.62,0.00023013,3]
[313378937,1707244238888,-155.04031048,0.00023021,4]
[313378938,1707244238897,-1296.90273557,0.00023021,2]
[313378940,1707244238906,-563.010236,0.00023022,2]
[313378942,1707244238917,-452.59867337,0.00023022,2]
[313378943,1707244238929,-6018.46436292,0.00023022,2]
[313379381,1707244245762,-19914.5621059,0.00023012,2]
[313379383,1707244245772,-5892.7,0.00023012,3]
[313379385,1707244245783,-14480.31180798,0.00023022,2]
[313379387,1707244245793,-37054.07667489,0.00023022,2]
[313379389,1707244245802,-212.56244355,0.00023023,2]
[313379391,1707244245812,-1433.59401123,0.00023023,2]
[313379393,1707244245822,-83908.04614101,0.00023029,2]
[313379394,1707244245831,-2044.28504665,0.0002303,2]
[313379395,1707244245841,-1513.05908057,0.00023031,2]
[313379397,1707244245852,-1744.84561809,0.00023031,2]
[313379399,1707244245862,-2820.97195235,0.00023031,2]
[313379400,1707244245877,-326.28860186,0.00023031,2]
[313379401,1707244245890,-179.16084006,0.00023031,2]
[313379402,1707244245901,-295.6225975,0.00023031,2]
[313379403,1707244245912,-155.11569364,0.00023031,2]
[313379404,1707244245924,-680.53747908,0.00023031,2]
[313379405,1707244245935,-717.73938521,0.00023031,2]
[313379406,1707244245945,-3979.03719208,0.00023031,2]
[313379407,1707244245957,-155.16053722,0.00023031,2]
[313379408,1707244245967,-297.28536823,0.00023031,2]
[313379409,1707244245977,-3329.18619939,0.00023171,2]
[313379410,1707244245987,-2465.67574349,0.00023406,2]
[313379411,1707244246153,-6555.8057995,0.00023409,2]
[313379412,1707244246167,-5220.96019101,0.00024416,2]
[313379413,1707244246177,-20917.8332955,0.00024417,2]
[313379414,1707244246186,-167.05841749,0.00024417,2]
[313379415,1707244246196,-711.47902006,0.00024422,2]
[313379416,1707244246205,-199.76835149,0.00024422,2]
[313379417,1707244246215,-4277.91769024,0.00025,2]
[313379418,1707244246224,-155.02480397,0.00026,2]
[313379419,1707244246233,-499.42473756,0.00026285,5]
[313379420,1707244246243,-6334.7366992,0.0002658,4]
[313379421,1707244246256,-1255.5221895,0.0002658,4]
[313379422,1707244260988,2947.98,0.00029,30]
[313379497,1707245431867,-294.46120376,0.00019806,2]
[313379498,1707245431876,-214.01183996,0.00019807,2]
[313379499,1707245431886,-1960.73724042,0.00019807,2]
[313379500,1707245431895,-322.23788217,0.00019808,2]
[313379502,1707245431904,-155.0356582,0.00019808,2]
[313379504,1707245431914,-199.70546809,0.00019808,2]
[313379505,1707245431923,-179.16084006,0.00019808,2]
[313379507,1707245431932,-857.74986734,0.00019808,2]
[313379510,1707245431945,-20093.62497693,0.00019808,2]
[313379513,1707245431954,-2044.28504665,0.00019809,2]
[313379516,1707245431963,-155.0356582,0.00019809,3]
[313379519,1707245431972,-212.56244355,0.00019809,2]
[313379521,1707245431981,-2554.61,0.0001981,3]
[313379524,1707245431991,-2554.61,0.0001981,3]
[313379526,1707245432000,-4986.24,0.0001981,3]
[313379528,1707245432010,-1296.90273557,0.00019815,2]
[313379530,1707245432019,-3494.79933315,0.00019816,2]
[313379532,1707245432028,-563.010236,0.00019817,2]
[313379534,1707245432038,-1433.59401123,0.00019818,2]
[313379536,1707245432048,-37054.07667489,0.00019818,2]
[313379538,1707245432057,-1018.05941437,0.00019819,2]
[313379540,1707245432066,-83908.04614101,0.0001982,2]
[313379541,1707245432075,-14211.31191581,0.00019821,2]
[313379542,1707245432086,-2131.67367807,0.00019821,2]
[313379568,1707245438082,-523.48199317,0.00019806,2]
[313379570,1707245438092,-3571.57651202,0.00019821,2]
[313379572,1707245438101,-15002.98324585,0.00019961,2]
[313379573,1707245438110,-312.603768,0.00019965,2]
[313379574,1707245438120,-323.94218908,0.0002,2]
[313379575,1707245438129,-200.0,0.00021827,7]
[313379576,1707245438138,-166.666666,0.00021918,2]
[313379577,1707245438147,-329.97823242,0.00022317,2]
[313379578,1707245438156,-609.53602629,0.00022776,2]
[313379579,1707245438165,-2044.01644384,0.00022785,2]
[313379580,1707245438174,-500.0,0.00022787,2]
[313379581,1707245438184,-449.06465573,0.00022787,2]
[313379582,1707245438193,-200.0,0.00022787,2]
[313379583,1707245438202,-500.0,0.00022787,2]
[313379584,1707245438212,-500.0,0.00022787,2]
[313379585,1707245438221,-167.14902392,0.00022787,2]
[313379586,1707245438230,-500.0,0.00022787,2]
[313379587,1707245438239,-197.33604893,0.00022787,2]
[313379588,1707245438252,-418.21393119,0.00022787,2]
[313379589,1707245438261,-8410.41235918,0.00022788,2]
[313379590,1707245438269,-14834.52133397,0.00023018,2]
[313379591,1707245438278,-5032.05886731,0.00023018,2]
[313379592,1707245438289,-260.89555211,0.00023018,2]
[313379593,1707245438298,-165.98692502,0.00023018,2]
[313379594,1707245438307,-166.82474295,0.00023018,2]
[313379595,1707245438316,-330.0505798,0.00023018,2]
[313379596,1707245438326,-1401.27089817,0.00023018,2]
[313379597,1707245438335,-181.08904402,0.00023018,2]
[313379598,1707245438345,-904.96914882,0.00023018,2]
[313379599,1707245438354,-2023.84254162,0.00023018,2]
[313379600,1707245438362,-543.48218311,0.00023018,2]
[313379601,1707245438371,-161.28090304,0.00023018,2]
[313379602,1707245438381,-4036.76038931,0.00024,2]
[313379603,1707245438389,-8592.08538779,0.00024422,2]
[313379604,1707245438398,-13542.25028947,0.00024422,2]
[313379605,1707245438410,-510.84848356,0.00024422,2]
[313379717,1707245442940,-520.2,0.00024422,2]
[313379720,1707245442953,-9046.25899812,0.00024422,2]
[313379722,1707245442962,-1110.82168488,0.00024422,2]
[313379724,1707245442974,-2056.9838968,0.00024422,2]
[313379727,1707245442996,-1000.0,0.00024422,2]
[313379781,1707245445998,-1292.61075533,0.00024421,2]
[313379783,1707245446009,-199.70546809,0.00024421,2]
[313379786,1707245446018,-935.60575405,0.00024421,2]
[313379788,1707245446035,-20918.0,0.00024421,2]
[313379791,1707245446047,-280.4,0.00024421,2]
[313379793,1707245446059,-26311.88719561,0.00024421,2]
[313379795,1707245446069,-458.5217925,0.00024421,2]
[313379798,1707245446079,-792.30155026,0.00024422,2]
[313379801,1707245446088,-155.04031048,0.00026,2]
[313379803,1707245446097,-1000.0,0.000271,3]
[313379805,1707245446107,-782.06002486,0.000273,2]
[313379807,1707245446116,-329.97823242,0.00027317,2]
[313379809,1707245446125,-4155.2,0.00027387,3]
[313379811,1707245446136,-155.45250703,0.00027394,2]
[313379813,1707245446145,-310.02170152,0.00027394,7]
[313379815,1707245446154,-1215.04438513,0.00027395,2]
[313379817,1707245446163,-2605.0,0.00027395,2]
[313379819,1707245446173,-310.0713164,0.00027395,2]
[313379821,1707245446183,-1269.76151482,0.00027396,2]
[313379823,1707245446192,-556.75044234,0.00027396,2]
[313379825,1707245446201,-500.0,0.00027397,3]
[313379827,1707245446211,-500.0,0.00027397,3]
[313379829,1707245446220,-500.0,0.00027397,3]
[313379831,1707245446229,-618.75515227,0.00027397,3]
[313379833,1707245446239,-500.0,0.00027397,3]
[313379835,1707245446250,-151.0,0.00027397,2]
[313379837,1707245446260,-500.0,0.00027397,3]
[313379839,1707245446269,-500.0,0.00027397,2]
[313379841,1707245446279,-500.0,0.00027397,3]
[313379842,1707245446289,-200.85526327,0.00027397,3]
[313379845,1707245446298,-500.0,0.00027397,2]
[313379847,1707245446308,-151.0,0.00027397,2]
[313379849,1707245446317,-500.0,0.00027397,3]
[313379851,1707245446327,-500.0,0.00027397,3]
[313379852,1707245446336,-673.39,0.00027397,3]
[313379855,1707245446345,-500.0,0.00027397,3]
[313379856,1707245446355,-662.16,0.00027397,3]
[313379858,1707245446364,-500.0,0.00027397,3]
[313379860,1707245446374,-500.0,0.00027397,3]
[313379862,1707245446386,-500.0,0.00027397,3]
[313379864,1707245446395,-500.0,0.00027397,3]
[313379866,1707245446404,-500.0,0.00027397,3]
[313379869,1707245446415,-500.0,0.00027397,3]
[313379870,1707245446424,-151.0,0.00027397,2]
[313379872,1707245446433,-155.0,0.00027397,2]
[313379873,1707245446443,-500.0,0.00027397,3]
[313379875,1707245446452,-500.0,0.00027397,2]
[313379876,1707245446462,-500.0,0.00027397,3]
[313379877,1707245446471,-151.0,0.00027397,2]
[313379878,1707245446480,-500.0,0.00027397,3]
[313379879,1707245446490,-500.0,0.00027397,3]
[313379880,1707245446499,-500.0,0.00027397,3]
[313379881,1707245446508,-151.0,0.00027397,2]
[313379882,1707245446518,-500.0,0.00027397,3]
[313379883,1707245446527,-500.0,0.00027397,3]
[313379884,1707245446537,-500.0,0.00027397,3]
[313379885,1707245446547,-891.02,0.00027397,3]
[313379886,1707245446557,-449.15887531,0.00027397,3]
[313379887,1707245446566,-500.0,0.00027397,3]
[313379888,1707245446575,-500.0,0.00027397,3]
[313379889,1707245446585,-500.0,0.00027397,2]
[313379890,1707245446594,-2132.93,0.00027397,3]
[313379891,1707245446604,-5905.3,0.00027397,3]
[313379892,1707245446613,-2221.75,0.00027397,3]
[313379893,1707245446622,-151.526744,0.00027397,2]
[313379894,1707245446633,-772.26,0.00027397,3]
[313379895,1707245446643,-500.0,0.00027397,3]
[313379896,1707245446652,-500.0,0.00027397,3]
[313379897,1707245446662,-500.0,0.00027397,3]
[313379898,1707245446671,-500.0,0.00027397,3]
[313379899,1707245446680,-151.0,0.00027397,2]
[313379900,1707245446690,-151.0,0.00027397,2]
[313379901,1707245446699,-500.0,0.00027397,3]
[313379902,1707245446709,-500.0,0.00027397,3]
[313379903,1707245446718,-500.0,0.00027397,3]
[313379904,1707245446727,-2605.42,0.00027397,3]
[313379905,1707245446737,-500.0,0.00027397,3]
[313379906,1707245446747,-500.0,0.00027397,3]
[313379907,1707245446757,-151.0,0.00027397,2]
[313379908,1707245446767,-576.5,0.00027397,3]
[313379909,1707245446776,-2268.71,0.00027397,3]
[313379910,1707245446786,-672.14,0.00027397,3]
[313379911,1707245446795,-500.0,0.00027397,3]
[313379912,1707245446805,-500.0,0.00027397,3]
[313379913,1707245446814,-500.0,0.00027397,3]
[313379914,1707245446823,-381.07651183,0.00027397,3]
[313379915,1707245446832,-500.0,0.00027397,3]
[313379916,1707245446842,-2475.96,0.00027397,3]
[313379917,1707245446852,-500.0,0.00027397,3]
[313379918,1707245446861,-500.0,0.00027397,3]
[313379919,1707245446871,-500.0,0.00027397,3]
[313379920,1707245446882,-658.2,0.00027397,3]
[313379921,1707245446891,-500.0,0.00027397,3]
[313379922,1707245446900,-151.0,0.00027397,2]
[313379923,1707245446910,-151.0,0.00027397,2]
[313379924,1707245446919,-507.49216995,0.00027397,3]
[313379925,1707245446928,-3541.71,0.00027397,3]
[313379926,1707245446938,-500.0,0.00027397,3]
[313379927,1707245447029,-500.0,0.00027397,3]
[313379928,1707245447053,-500.0,0.00027397,3]
[313379929,1707245447063,-500.0,0.00027397,3]
[313379930,1707245447073,-881.5,0.00027397,3]
[313379931,1707245447083,-5550.28,0.00027397,3]
[313379932,1707245447092,-1128.16,0.00027397,3]
[313379933,1707245447101,-500.0,0.00027397,2]
[313379934,1707245447111,-664.54,0.00027397,3]
[313379936,1707245447120,-500.0,0.00027397,3]
[313379938,1707245447129,-1000.0,0.00027397,2]
[313379940,1707245447140,-151.0,0.000274,2]
[313379941,1707245447149,-151.0,0.000274,2]
[313379943,1707245447160,-5000.0,0.00027474,5]
[313379945,1707245447169,-151.0,0.00027474,2]
[313379946,1707245447178,-103448.06998461,0.000275,2]
[313379947,1707245447187,-151.0,0.000275,2]
[313379948,1707245447196,-151.0,0.000275,2]
[313379949,1707245447206,-151.0,0.000275,2]
[313379950,1707245447215,-151.0,0.000275,2]
[313379951,1707245447224,-151.0,0.000275,2]
[313379952,1707245447234,-151.0,0.000275,2]
[313379953,1707245447243,-151.0,0.000275,2]
[313379954,1707245447256,-151.0,0.000275,2]
[313379955,1707245447265,-2768.2199146,0.0002755,4]
[313379956,1707245447274,-279.90301792,0.00027668,2]
[313379957,1707245447284,-177.10154128,0.00027668,3]
[313379958,1707245447293,-7246.9201407,0.0002767,2]
[313379959,1707245447302,-1651.61524348,0.0002767,2]
[313379960,1707245447312,-1012.7997081,0.0002767,2]
[313379961,1707245447321,-367.02105874,0.0002767,2]
[313379962,1707245447330,-153.29995193,0.0002767,2]
[313379963,1707245447340,-174.10132151,0.0002767,2]
[313379964,1707245447350,-500.0,0.0002767,2]
[313379965,1707245447359,-578.13762115,0.0002767,2]
[313379966,1707245447368,-500.0,0.0002767,2]
[313379967,1707245447377,-393.08946081,0.0002767,2]
[313379968,1707245447386,-500.0,0.0002767,2]
[313379969,1707245447395,-528.61033197,0.0002767,2]
[313379970,1707245447404,-500.0,0.0002767,2]
[313379971,1707245447413,-500.0,0.0002767,2]
[313379972,1707245447422,-500.0,0.0002767,2]
[313379973,1707245447431,-500.0,0.0002767,2]
[313379974,1707245447440,-168.76290527,0.0002767,2]
[313379975,1707245447449,-500.0,0.00027671,3]
[313379976,1707245447458,-151.0,0.00027671,2]
[313379977,1707245447467,-637.33,0.00027671,3]
[313379978,1707245447476,-500.0,0.00027671,3]
[313379979,1707245447485,-500.0,0.00027671,2]
[313379980,1707245447494,-500.0,0.00027671,3]
[313379981,1707245447503,-331.64044513,0.00027671,2]
[313379982,1707245447512,-500.0,0.00027671,3]
[313379983,1707245447522,-500.0,0.00027671,3]
[313379984,1707245447531,-673.39,0.00027671,3]
[313379985,1707245447541,-500.0,0.00027671,3]
[313379986,1707245447550,-662.16,0.00027671,3]
[313379987,1707245447560,-500.0,0.00027671,3]
[313379988,1707245447569,-500.0,0.00027671,3]
[313379989,1707245447578,-500.0,0.00027671,3]
[313379990,1707245447587,-500.0,0.00027671,3]
[313379991,1707245447595,-500.0,0.00027671,3]
[313379992,1707245447604,-500.0,0.00027671,2]
[313379993,1707245447613,-373.33511928,0.00027671,3]
[313379994,1707245447623,-500.0,0.00027671,3]
[313379995,1707245447632,-310.50061164,0.00027671,3]
[313379996,1707245447641,-616.04,0.00027671,3]
[313379997,1707245447650,-500.0,0.00027671,3]
[313379998,1707245447659,-500.0,0.00027671,3]
[313379999,1707245447668,-500.0,0.00027671,3]
[313380000,1707245447677,-891.02,0.00027671,3]
[313380001,1707245447686,-500.0,0.00027671,3]
[313380002,1707245447696,-500.0,0.00027671,3]
[313380003,1707245447705,-500.0,0.00027671,2]
[313380004,1707245447714,-2132.93,0.00027671,3]
[313380005,1707245447724,-5905.3,0.00027671,3]
[313380006,1707245447733,-2221.75,0.00027671,3]
[313380007,1707245447742,-772.26,0.00027671,3]
[313380008,1707245447751,-500.0,0.00027671,3]
[313380009,1707245447760,-500.0,0.00027671,3]
[313380010,1707245447770,-500.0,0.00027671,3]
[313380011,1707245447779,-500.0,0.00027671,3]
[313380012,1707245447788,-500.0,0.00027671,3]
[313380013,1707245447798,-500.0,0.00027671,3]
[313380014,1707245447806,-500.0,0.00027671,3]
[313380015,1707245447816,-2605.42,0.00027671,3]
[313380016,1707245447825,-500.0,0.00027671,3]
[313380017,1707245447834,-500.0,0.00027671,3]
[313380018,1707245447843,-576.5,0.00027671,3]
[313380019,1707245447852,-2268.71,0.00027671,3]
[313380020,1707245447862,-672.14,0.00027671,3]
[313380021,1707245447871,-500.0,0.00027671,3]
[313380022,1707245447881,-500.0,0.00027671,3]
[313380023,1707245447890,-500.0,0.00027671,3]
[313380024,1707245447900,-500.0,0.00027671,3]
[313380025,1707245447908,-2475.96,0.00027671,3]
[313380026,1707245447918,-500.0,0.00027671,3]
[313380027,1707245447927,-500.0,0.00027671,3]
[313380028,1707245447937,-500.0,0.00027671,3]
[313380029,1707245447946,-658.2,0.00027671,3]
[313380030,1707245447956,-500.0,0.00027671,3]
[313380031,1707245447965,-151.0,0.00027671,2]
[313380032,1707245447975,-3541.71,0.00027671,3]
[313380033,1707245447985,-500.0,0.00027671,3]
[313380034,1707245447995,-500.0,0.00027671,3]
[313380035,1707245448004,-500.0,0.00027671,3]
[313380036,1707245448013,-500.0,0.00027671,3]
[313380037,1707245448022,-881.5,0.00027671,3]
[313380038,1707245448032,-5550.28,0.00027671,3]
[313380039,1707245448041,-1128.16,0.00027671,3]
[313380040,1707245448051,-664.54,0.00027671,3]
[313380041,1707245448061,-500.0,0.00027671,3]
[313380042,1707245448070,-1000.0,0.00027671,2]
[313380043,1707245448080,-497.16556794,0.00027945,3]
[313380044,1707245448089,-151.0,0.00027945,2]
[313380045,1707245448099,-500.0,0.00027945,3]
[313380046,1707245448108,-500.0,0.00027945,3]
[313380047,1707245448118,-500.0,0.00027945,3]
[313380048,1707245448127,-500.0,0.00027945,3]
[313380049,1707245448137,-673.39,0.00027945,3]
[313380050,1707245448147,-662.16,0.00027945,3]
[313380051,1707245448156,-500.0,0.00027945,3]
[313380052,1707245448166,-500.0,0.00027945,3]
[313380053,1707245448175,-500.0,0.00027945,3]
[313380054,1707245448184,-500.0,0.00027945,3]
[313380055,1707245448194,-500.0,0.00027945,2]
[313380056,1707245448203,-500.0,0.00027945,3]
[313380057,1707245448212,-500.0,0.00027945,3]
[313380058,1707245448222,-891.02,0.00027945,3]
[313380059,1707245448231,-500.0,0.00027945,3]
[313380060,1707245448240,-989.51372425,0.00027945,3]
[313380080,1707245660704,269.65586708,0.0001,2]
[313380081,1707245718770,1096.64253083,0.0001,2]
[313380082,1707245720798,684.00016299,0.0001,2]
[313380083,1707245736822,1096.64253083,0.0001,2]
[313380084,1707245742706,684.00016299,0.0001,2]
[313380085,1707245752766,313.0681318,0.0001,2]
[313380086,1707245758698,208.67076754,0.0001,2]
[313380087,1707245787422,523.48199317,0.00018299,2]
[313380088,1707245801044,155.0310062,0.00018299,3]
[313380089,1707245806958,322.23788217,0.00018299,2]
[313380090,1707245811752,212.56244355,0.00018299,2]
[313380091,1707245818866,179.16084006,0.00018299,2]
[313380092,1707245820264,155.0310062,0.00018299,2]
[313380093,1707245879410,99.81467459,0.00018299,2]
[313380098,1707245978134,162.21176964,0.00018098,2]
[313380099,1707245996382,312.603768,0.00017241,2]
[313380101,1707245998564,155.0310062,0.00018135,3]
[313380104,1707246012566,155.0310062,0.00016466,3]
[313380107,1707246038579,155.02790502,0.00016376,3]
[313380110,1707246062589,155.02790502,0.00016376,3]
[313380111,1707246082572,155.02635448,0.00016373,3]
[313380115,1707246102578,155.02635448,0.00016373,3]
[313380116,1707246122589,155.02635448,0.00016373,3]
[313380117,1707246138587,155.02635448,0.00016316,3]
[313380118,1707246150995,155.01550155,0.00018036,2]
[313380119,1707246152589,155.02635448,0.00016316,3]
[313380121,1707246176599,155.02635448,0.00016316,3]
[313380125,1707246241231,1207.02409287,0.00017128,2]
[313380126,1707246241261,10000.0,0.00017128,2]
[313380127,1707246241292,13692.97590713,0.00017128,2]
[313380129,1707246249266,155.02635448,0.00018118,3]
[313380131,1707246267193,155.02635448,0.00016308,3]
[313380132,1707246287122,155.02635448,0.00016308,3]
[313380133,1707246307134,155.02635448,0.00016308,3]
[313380134,1707246327138,155.02635448,0.00016305,3]
[313380135,1707246347132,155.02635448,0.00016305,3]
[313380146,1707246484944,1433.59401123,0.0001801,2]
[313380151,1707246498531,322.23788217,0.0001801,2]
[313380156,1707246504161,155.02635448,0.0001801,3]
[313380157,1707246504271,9551.19219947,0.0001801,2]
[313380160,1707246524172,155.02635448,0.00016295,3]
[313380161,1707246540168,155.02635448,0.00016295,3]
[313380177,1707246562211,155.02635448,0.00016206,3]
[313380196,1707246578181,155.02635448,0.00016206,3]
[313380197,1707246598182,155.02635448,0.00016206,3]
[313380198,1707246624186,155.02635448,0.00016205,3]
[313380235,1707246634294,-1433.59401123,0.00018004,2]
[313380237,1707246634304,-212.56244355,0.00018004,2]
[313380239,1707246634315,-155.02635448,0.00018005,2]
[313380240,1707246634326,-523.48199317,0.00018005,2]
[313380242,1707246634337,-3494.79933315,0.00018005,2]
[313380244,1707246634347,-37054.07667489,0.00018007,2]
[313380246,1707246634357,-20951.37484427,0.00018008,2]
[313380248,1707246634367,-290.76703707,0.00018105,2]
[313380250,1707246634377,-4684.21593402,0.00018113,2]
[313380252,1707246634387,-162.21176964,0.00018136,2]
[313380254,1707246634398,-162.21176964,0.00018175,2]
[313380256,1707246634408,-162.21176964,0.00018213,2]
[313380258,1707246634419,-200.0,0.00019918,2]
[313380260,1707246634429,-260.67322132,0.00020938,2]
[313380262,1707246634440,-208.57139833,0.00020938,2]
[313380264,1707246634450,-3904.0,0.0002189,3]
[313380266,1707246634460,-4684.8,0.000219,3]
[313380267,1707246634470,-280.0,0.0002191,7]
[313380269,1707246634480,-252.0,0.00024101,7]
[313380271,1707246634490,-436.51471674,0.00024172,2]
[313380273,1707246634500,-19879.54878318,0.00024173,2]
[313380275,1707246634510,-19124.88822616,0.00024174,2]
[313380277,1707246634520,-310.02170152,0.00024418,2]
[313380290,1707246634661,-1269.76151482,0.00024418,2]
[313380292,1707246634673,-2107.61060865,0.00024418,2]
[313380294,1707246634683,-2717.61274682,0.00024418,2]
[313380297,1707246634696,-4599.6,0.00024418,2]
[313380339,1707246638156,-262.58095141,0.00024418,2]
[313380340,1707246638266,-11364.68592111,0.00024418,2]
[313380341,1707246638276,-261.59404657,0.00024418,2]
[313380342,1707246638285,-291.73563691,0.00024418,2]
[313380343,1707246638294,-556.75044234,0.00024418,2]
[313380345,1707246638304,-6870.75003333,0.00024418,2]
[313380347,1707246638313,-2605.0,0.00024418,2]
[313380349,1707246638322,-273.17609945,0.00024418,2]
[313380351,1707246638333,-1017.28176593,0.00024419,2]
[313380353,1707246638343,-561.60022947,0.0002442,2]
[313380354,1707246638352,-157.57932569,0.0002444,2]
[313380355,1707246638361,-83221.25111823,0.00024441,2]
[313380356,1707246638370,-19560.00925936,0.00024441,2]
[313380357,1707246638379,-2559.83326,0.00024441,2]
[313380358,1707246638388,-930.25585006,0.00024441,2]
[313380359,1707246638397,-499.42473756,0.0002496,5]
[313380360,1707246638406,-7401.59956325,0.00025,2]